[Event "Titled Tuesday Blitz July 11 Early 2023"]
[White "Reprintsev, Alexander"]
[Black "Vokhidov, Shamsiddin"]
[WhiteFideId "14100541"]
[BlackFideId "14204223"]
[WhiteElo "2507"]
[BlackElo "2938"]
[Result "1-0"]
[Round "1"]
[TimeControl "180+2"]
[Date "2023.07.11"]
[WhiteClock "0:00:10"]
[BlackClock "0:00:14"]
[Board "17"]

1. e4 {[%clk 0:02:56]}  c5 {[%clk 0:02:59]} 2. b3 {[%clk 0:02:54]}  e5 {[%clk 0:02:57]} 3. Bb2 {[%clk 0:02:54]}  Nc6 {[%clk 0:02:56]} 4. f4 {[%clk 0:02:54]}  exf4 {[%clk 0:02:55]} 5. Qf3 {[%clk 0:02:54]}  Nd4 {[%clk 0:02:48]} 6. Bxd4 {[%clk 0:02:53]}  cxd4 {[%clk 0:02:49]} 7. Qxf4 {[%clk 0:02:53]}  d5 {[%clk 0:02:43]} 8. Bb5+ {[%clk 0:02:50]}  Bd7 {[%clk 0:02:42]} 9. Bxd7+ {[%clk 0:02:43]}  Qxd7 {[%clk 0:02:42]} 10. Qe5+ {[%clk 0:02:41]}  Ne7 {[%clk 0:02:42]} 11. exd5 {[%clk 0:02:40]}  Qxd5 {[%clk 0:02:40]} 12. Nf3 {[%clk 0:02:39]}  Qxe5+ {[%clk 0:02:39]} 13. Nxe5 {[%clk 0:02:39]}  Rc8 {[%clk 0:02:35]} 14. c4 {[%clk 0:02:39]}  dxc3 {[%clk 0:02:34]} 15. Nxc3 {[%clk 0:02:37]}  f6 {[%clk 0:02:29]} 16. Nc4 {[%clk 0:02:35]}  Nf5 {[%clk 0:02:23]} 17. O-O-O {[%clk 0:02:34]}  Kf7 {[%clk 0:02:21]} 18. Kb2 {[%clk 0:02:32]}  a6 {[%clk 0:02:19]} 19. a4 {[%clk 0:02:30]}  Bb4 {[%clk 0:02:18]} 20. Rhe1 {[%clk 0:02:26]}  Rhd8 {[%clk 0:02:16]} 21. g4 {[%clk 0:02:19]}  Nd4 {[%clk 0:02:15]} 22. Nb6 {[%clk 0:02:09]}  Rc5 {[%clk 0:02:09]} 23. Re4 {[%clk 0:02:04]}  a5 {[%clk 0:02:05]} 24. Rde1 {[%clk 0:02:00]}  Nf3 {[%clk 0:02:04]} 25. Re7+ {[%clk 0:01:54]}  Kg6 {[%clk 0:02:03]} 26. R1e2 {[%clk 0:01:40]}  Rxd2+ {[%clk 0:02:01]} 27. Rxd2 {[%clk 0:01:35]}  Bxc3+ {[%clk 0:02:02]} 28. Ka2 {[%clk 0:01:30]}  Bxd2 {[%clk 0:02:02]} 29. Rxb7 {[%clk 0:01:29]}  Rc2+ {[%clk 0:02:01]} 30. Kb1 {[%clk 0:01:27]}  Rc1+ {[%clk 0:02:00]} 31. Kb2 {[%clk 0:01:27]}  Nd4 {[%clk 0:02:01]} 32. Nd5 {[%clk 0:01:23]}  Rc2+ {[%clk 0:02:00]} 33. Kb1 {[%clk 0:01:23]}  Bh6 {[%clk 0:01:54]} 34. h4 {[%clk 0:01:21]}  Bd2 {[%clk 0:01:43]} 35. Ne7+ {[%clk 0:01:21]}  Kh6 {[%clk 0:01:41]} 36. Ng8+ {[%clk 0:01:21]}  Kg6 {[%clk 0:01:41]} 37. Ne7+ {[%clk 0:01:20]}  Kf7 {[%clk 0:01:41]} 38. Nf5+ {[%clk 0:01:20]}  Kf8 {[%clk 0:01:38]} 39. Nxd4 {[%clk 0:01:19]}  Rc1+ {[%clk 0:01:39]} 40. Kb2 {[%clk 0:01:18]}  Rg1 {[%clk 0:01:39]} 41. Ne6+ {[%clk 0:01:18]}  Ke8 {[%clk 0:01:37]} 42. Nxg7+ {[%clk 0:01:17]}  Kd8 {[%clk 0:01:38]} 43. Ne6+ {[%clk 0:01:17]}  Kc8 {[%clk 0:01:38]} 44. Rc7+ {[%clk 0:01:17]}  Kb8 {[%clk 0:01:39]} 45. Rxh7 {[%clk 0:01:17]}  Rxg4 {[%clk 0:01:38]} 46. h5 {[%clk 0:01:17]}  Rg2 {[%clk 0:01:32]} 47. Kc2 {[%clk 0:01:10]}  f5 {[%clk 0:01:31]} 48. Kd3 {[%clk 0:01:09]}  Bc1 {[%clk 0:01:27]} 49. Rf7 {[%clk 0:01:06]}  Rf2 {[%clk 0:01:23]} 50. Nd4 {[%clk 0:01:03]}  f4 {[%clk 0:01:12]} 51. Nc6+ {[%clk 0:01:03]}  Kc8 {[%clk 0:01:12]} 52. h6 {[%clk 0:00:57]}  Rh2 {[%clk 0:01:11]} 53. h7 {[%clk 0:00:57]}  Bb2 {[%clk 0:01:11]} 54. Nxa5 {[%clk 0:00:52]}  f3 {[%clk 0:01:08]} 55. Nc4 {[%clk 0:00:48]}  Ba1 {[%clk 0:01:03]} 56. Nd6+ {[%clk 0:00:48]}  Kd8 {[%clk 0:01:04]} 57. Ne4 {[%clk 0:00:48]}  Ke8 {[%clk 0:01:02]} 58. Nd6+ {[%clk 0:00:47]}  Kd8 {[%clk 0:01:02]} 59. a5 {[%clk 0:00:47]}  f2 {[%clk 0:00:57]} 60. Rxf2 {[%clk 0:00:37]}  Rxh7 {[%clk 0:00:56]} 61. Ra2 {[%clk 0:00:32]}  Be5 {[%clk 0:00:52]} 62. Nc4 {[%clk 0:00:31]}  Bb8 {[%clk 0:00:51]} 63. b4 {[%clk 0:00:31]}  Rh5 {[%clk 0:00:46]} 64. Rg2 {[%clk 0:00:24]}  Kd7 {[%clk 0:00:44]} 65. Rg6 {[%clk 0:00:22]}  Rh3+ {[%clk 0:00:41]} 66. Kc2 {[%clk 0:00:20]}  Rh4 {[%clk 0:00:40]} 67. Kb3 {[%clk 0:00:20]}  Rh3+ {[%clk 0:00:37]} 68. Ka4 {[%clk 0:00:19]}  Rh4 {[%clk 0:00:37]} 69. Nb6+ {[%clk 0:00:19]}  Kc7 {[%clk 0:00:37]} 70. Nd5+ {[%clk 0:00:19]}  Kb7 {[%clk 0:00:35]} 71. a6+ {[%clk 0:00:18]}  Ka7 {[%clk 0:00:35]} 72. Kb3 {[%clk 0:00:12]}  Rh3+ {[%clk 0:00:28]} 73. Kc4 {[%clk 0:00:12]}  Rh1 {[%clk 0:00:22]} 74. b5 {[%clk 0:00:12]}  Rc1+ {[%clk 0:00:21]} 75. Kb3 {[%clk 0:00:12]}  Rb1+ {[%clk 0:00:20]} 76. Ka4 {[%clk 0:00:12]}  Ra1+ {[%clk 0:00:21]} 77. Kb4 {[%clk 0:00:13]}  Rb1+ {[%clk 0:00:21]} 78. Kc5 {[%clk 0:00:12]}  Rc1+ {[%clk 0:00:22]} 79. Kd4 {[%clk 0:00:12]}  Bh2 {[%clk 0:00:19]} 80. Rg7+ {[%clk 0:00:11]}  Kb8 {[%clk 0:00:19]} 81. b6 {[%clk 0:00:11]}  Bg1+ {[%clk 0:00:16]} 82. Ke5 {[%clk 0:00:10]}  Re1+ {[%clk 0:00:15]} 83. Kd6 {[%clk 0:00:10]}  Bh2+ {[%clk 0:00:15]} 84. Kd7 {[%clk 0:00:10]}  Rd1 {[%clk 0:00:14]} 85. Rg8# {[%clk 0:00:10]} 1-0


[Site "https://www.chess.com"]

[Event "Titled Tuesday Blitz July 11 Early 2023"]
[White "Chigaev, Maksim"]
[Black "Moskvin, Anatoly"]
[WhiteFideId "4108116"]
[BlackFideId "24199990"]
[WhiteElo "2936"]
[BlackElo "2506"]
[Result "1-0"]
[Round "1"]
[TimeControl "180+2"]
[Date "2023.07.11"]
[WhiteClock "0:01:25"]
[BlackClock "0:01:02"]
[Board "18"]

1. e4 {[%clk 0:03:00]}  e5 {[%clk 0:02:57]} 2. Nf3 {[%clk 0:03:00]}  Nc6 {[%clk 0:02:56]} 3. Bb5 {[%clk 0:03:00]}  Nge7 {[%clk 0:02:57]} 4. Nc3 {[%clk 0:02:58]}  a6 {[%clk 0:02:57]} 5. Bxc6 {[%clk 0:02:57]}  Nxc6 {[%clk 0:02:57]} 6. d4 {[%clk 0:02:58]}  exd4 {[%clk 0:02:57]} 7. Nxd4 {[%clk 0:02:59]}  Bb4 {[%clk 0:02:56]} 8. O-O {[%clk 0:02:58]}  O-O {[%clk 0:02:51]} 9. Nd5 {[%clk 0:02:58]}  Nxd4 {[%clk 0:02:45]} 10. Qxd4 {[%clk 0:02:51]}  Be7 {[%clk 0:02:46]} 11. Qc3 {[%clk 0:02:35]}  c6 {[%clk 0:02:38]} 12. Nxe7+ {[%clk 0:02:33]}  Qxe7 {[%clk 0:02:39]} 13. Be3 {[%clk 0:02:30]}  Qxe4 {[%clk 0:02:36]} 14. Rfe1 {[%clk 0:02:23]}  d6 {[%clk 0:02:34]} 15. Rad1 {[%clk 0:02:05]}  Be6 {[%clk 0:02:23]} 16. Bd4 {[%clk 0:01:58]}  Qg6 {[%clk 0:02:23]} 17. Re3 {[%clk 0:01:57]}  c5 {[%clk 0:02:17]} 18. Bxg7 {[%clk 0:01:57]}  Bg4 {[%clk 0:01:30]} 19. Bxf8 {[%clk 0:01:41]}  Bxd1 {[%clk 0:01:30]} 20. Rg3 {[%clk 0:01:40]}  Bg4 {[%clk 0:01:30]} 21. h3 {[%clk 0:01:34]}  Kxf8 {[%clk 0:01:02]} 22. Rxg4 {[%clk 0:01:25]} 1-0


[Site "https://www.chess.com"]

[Event "Titled Tuesday Blitz July 11 Early 2023"]
[White "Aravindh, Chithambaram VR."]
[Black "Lehtosaari, Mauri"]
[WhiteFideId "5072786"]
[BlackFideId "501999"]
[WhiteElo "2925"]
[BlackElo "2505"]
[Result "1-0"]
[Round "1"]
[TimeControl "180+2"]
[Date "2023.07.11"]
[WhiteClock "0:00:09"]
[BlackClock "0:00:08"]
[Board "20"]

1. Nf3 {[%clk 0:02:57]}  d5 {[%clk 0:02:56]} 2. b3 {[%clk 0:02:56]}  Nf6 {[%clk 0:02:52]} 3. Bb2 {[%clk 0:02:55]}  Bf5 {[%clk 0:02:52]} 4. g3 {[%clk 0:02:48]}  c6 {[%clk 0:02:48]} 5. Bg2 {[%clk 0:02:48]}  e6 {[%clk 0:02:45]} 6. O-O {[%clk 0:02:48]}  Be7 {[%clk 0:02:43]} 7. c4 {[%clk 0:02:49]}  O-O {[%clk 0:02:41]} 8. d3 {[%clk 0:02:44]}  h6 {[%clk 0:02:39]} 9. Nbd2 {[%clk 0:02:35]}  Bh7 {[%clk 0:02:38]} 10. Ne5 {[%clk 0:02:35]}  Nbd7 {[%clk 0:02:36]} 11. Ndf3 {[%clk 0:02:35]}  Nxe5 {[%clk 0:02:37]} 12. Nxe5 {[%clk 0:02:36]}  Nd7 {[%clk 0:02:37]} 13. Nxd7 {[%clk 0:02:33]}  Qxd7 {[%clk 0:02:37]} 14. Qd2 {[%clk 0:02:30]}  Bg6 {[%clk 0:02:24]} 15. Rad1 {[%clk 0:02:22]}  a5 {[%clk 0:02:17]} 16. a3 {[%clk 0:01:51]}  Qd8 {[%clk 0:02:15]} 17. Qc3 {[%clk 0:01:43]}  Bf6 {[%clk 0:02:09]} 18. Qc1 {[%clk 0:01:43]}  Re8 {[%clk 0:02:02]} 19. e4 {[%clk 0:01:37]}  Bxb2 {[%clk 0:01:53]} 20. Qxb2 {[%clk 0:01:30]}  dxe4 {[%clk 0:01:30]} 21. dxe4 {[%clk 0:01:31]}  Qb6 {[%clk 0:01:30]} 22. Rd6 {[%clk 0:00:59]}  Red8 {[%clk 0:01:27]} 23. Rfd1 {[%clk 0:00:58]}  Rxd6 {[%clk 0:01:26]} 24. Rxd6 {[%clk 0:00:59]}  Qc5 {[%clk 0:01:09]} 25. e5 {[%clk 0:00:57]}  a4 {[%clk 0:01:02]} 26. b4 {[%clk 0:00:39]}  Qxc4 {[%clk 0:00:55]} 27. h4 {[%clk 0:00:38]}  h5 {[%clk 0:00:43]} 28. Bf1 {[%clk 0:00:30]}  Qb3 {[%clk 0:00:35]} 29. Qc1 {[%clk 0:00:30]}  Be4 {[%clk 0:00:29]} 30. Be2 {[%clk 0:00:29]}  g6 {[%clk 0:00:26]} 31. Bd1 {[%clk 0:00:23]}  Qa2 {[%clk 0:00:15]} 32. Rd2 {[%clk 0:00:17]}  Qb1 {[%clk 0:00:15]} 33. Qxb1 {[%clk 0:00:14]}  Bxb1 {[%clk 0:00:16]} 34. Rd7 {[%clk 0:00:11]}  b6 {[%clk 0:00:16]} 35. Bf3 {[%clk 0:00:10]}  Rc8 {[%clk 0:00:15]} 36. Rb7 {[%clk 0:00:07]}  c5 {[%clk 0:00:15]} 37. bxc5 {[%clk 0:00:06]}  Rxc5 {[%clk 0:00:11]} 38. Rxb6 {[%clk 0:00:06]}  Bc2 {[%clk 0:00:10]} 39. Rc6 {[%clk 0:00:02]}  Rxc6 {[%clk 0:00:07]} 40. Bxc6 {[%clk 0:00:03]}  Kg7 {[%clk 0:00:06]} 41. f4 {[%clk 0:00:03]}  f6 {[%clk 0:00:07]} 42. Kf2 {[%clk 0:00:04]}  g5 {[%clk 0:00:06]} 43. exf6+ {[%clk 0:00:04]}  Kxf6 {[%clk 0:00:07]} 44. hxg5+ {[%clk 0:00:04]}  Kf5 {[%clk 0:00:07]} 45. Ke3 {[%clk 0:00:03]}  Kg4 {[%clk 0:00:05]} 46. Bf3+ {[%clk 0:00:04]}  Kxg3 {[%clk 0:00:05]} 47. Bxh5 {[%clk 0:00:04]}  Kh4 {[%clk 0:00:05]} 48. Bf7 {[%clk 0:00:05]}  Bf5 {[%clk 0:00:04]} 49. g6 {[%clk 0:00:05]}  e5 {[%clk 0:00:03]} 50. g7 {[%clk 0:00:05]}  exf4+ {[%clk 0:00:03]} 51. Kxf4 {[%clk 0:00:05]}  Bh7 {[%clk 0:00:03]} 52. g8=Q {[%clk 0:00:05]}  Bxg8 {[%clk 0:00:04]} 53. Bxg8 {[%clk 0:00:06]}  Kh5 {[%clk 0:00:04]} 54. Bf7+ {[%clk 0:00:07]}  Kh6 {[%clk 0:00:04]} 55. Be8 {[%clk 0:00:07]}  Kg7 {[%clk 0:00:05]} 56. Ke5 {[%clk 0:00:07]}  Kf8 {[%clk 0:00:05]} 57. Bxa4 {[%clk 0:00:08]}  Ke7 {[%clk 0:00:06]} 58. Bc6 {[%clk 0:00:08]}  Kd8 {[%clk 0:00:07]} 59. Kd6 {[%clk 0:00:08]}  Kc8 {[%clk 0:00:08]} 60. Kc5 {[%clk 0:00:09]}  Kb8 {[%clk 0:00:08]} 61. Kb6 {[%clk 0:00:09]} 1-0


[Site "https://www.chess.com"]

[Event "Titled Tuesday Blitz July 11 Early 2023"]
[White "Santos Flores, Alberto"]
[Black "Narayanan, Srinath"]
[WhiteFideId "3601234"]
[BlackFideId "5018420"]
[WhiteElo "2503"]
[BlackElo "2924"]
[Result "0-1"]
[Round "1"]
[TimeControl "180+2"]
[Date "2023.07.11"]
[WhiteClock "0:00:00"]
[BlackClock "0:00:09"]
[Board "21"]

1. e4 {[%clk 0:02:58]}  c5 {[%clk 0:02:59]} 2. Nf3 {[%clk 0:02:58]}  d6 {[%clk 0:02:59]} 3. Bb5+ {[%clk 0:02:57]}  Nd7 {[%clk 0:02:57]} 4. d4 {[%clk 0:02:56]}  cxd4 {[%clk 0:02:58]} 5. Qxd4 {[%clk 0:02:57]}  Nf6 {[%clk 0:02:59]} 6. Nc3 {[%clk 0:02:57]}  a6 {[%clk 0:02:59]} 7. Bxd7+ {[%clk 0:02:57]}  Nxd7 {[%clk 0:03:00]} 8. Bg5 {[%clk 0:02:49]}  h6 {[%clk 0:02:59]} 9. Bh4 {[%clk 0:02:48]}  e5 {[%clk 0:02:58]} 10. Qd3 {[%clk 0:02:38]}  g5 {[%clk 0:02:57]} 11. Bg3 {[%clk 0:02:37]}  Nc5 {[%clk 0:02:58]} 12. Qe2 {[%clk 0:02:28]}  Be6 {[%clk 0:02:53]} 13. Nd2 {[%clk 0:02:24]}  Rc8 {[%clk 0:02:52]} 14. Nb3 {[%clk 0:02:16]}  Qb6 {[%clk 0:02:49]} 15. f3 {[%clk 0:02:09]}  Qb4 {[%clk 0:02:42]} 16. Qd2 {[%clk 0:01:59]}  Na4 {[%clk 0:02:26]} 17. a3 {[%clk 0:01:24]}  Qc4 {[%clk 0:02:10]} 18. Na5 {[%clk 0:01:24]}  Qc7 {[%clk 0:02:01]} 19. Nxa4 {[%clk 0:01:18]}  b5 {[%clk 0:02:02]} 20. b4 {[%clk 0:00:40]}  bxa4 {[%clk 0:01:59]} 21. c4 {[%clk 0:00:41]}  Be7 {[%clk 0:01:49]} 22. O-O {[%clk 0:00:39]}  h5 {[%clk 0:01:43]} 23. Bf2 {[%clk 0:00:38]}  g4 {[%clk 0:01:42]} 24. f4 {[%clk 0:00:35]}  exf4 {[%clk 0:01:38]} 25. Qxf4 {[%clk 0:00:36]}  h4 {[%clk 0:01:37]} 26. Bd4 {[%clk 0:00:30]}  Rg8 {[%clk 0:01:36]} 27. e5 {[%clk 0:00:26]}  h3 {[%clk 0:01:22]} 28. g3 {[%clk 0:00:16]}  dxe5 {[%clk 0:01:09]} 29. Bxe5 {[%clk 0:00:15]}  Qa7+ {[%clk 0:01:08]} 30. Qd4 {[%clk 0:00:13]}  Qa8 {[%clk 0:01:09]} 31. Rf2 {[%clk 0:00:12]}  Rg5 {[%clk 0:00:48]} 32. Bf6 {[%clk 0:00:11]}  Rd8 {[%clk 0:00:45]} 33. Qc3 {[%clk 0:00:10]}  Rf5 {[%clk 0:00:36]} 34. Raf1 {[%clk 0:00:08]}  Rxf2 {[%clk 0:00:26]} 35. Kxf2 {[%clk 0:00:08]}  Qg2+ {[%clk 0:00:21]} 36. Ke1 {[%clk 0:00:08]}  Bxf6 {[%clk 0:00:14]} 37. Rxf6 {[%clk 0:00:09]}  Qe4+ {[%clk 0:00:12]} 38. Kf2 {[%clk 0:00:08]}  Rd3 {[%clk 0:00:11]} 39. Rxe6+ {[%clk 0:00:03]}  fxe6 {[%clk 0:00:10]} 40. Qh8+ {[%clk 0:00:04]}  Kf7 {[%clk 0:00:10]} 41. Qh5+ {[%clk 0:00:03]}  Qg6 {[%clk 0:00:08]} 42. Qxg6+ {[%clk 0:00:04]}  Kxg6 {[%clk 0:00:09]} 43. c5 {[%clk 0:00:04]}  Rxa3 {[%clk 0:00:09]} 44. Nc4 {[%clk 0:00:03]}  Rc3 {[%clk 0:00:09]} 45. Ne5+ {[%clk 0:00:00]}  Kf5 {[%clk 0:00:09]} 0-1


[Site "https://www.chess.com"]

[Event "Titled Tuesday Blitz July 11 Early 2023"]
[White "Dau Khuong Duy"]
[Black "Manukian, Artak"]
[WhiteFideId "12424722"]
[BlackFideId "13301373"]
[WhiteElo "2914"]
[BlackElo "2502"]
[Result "1-0"]
[Round "1"]
[TimeControl "180+2"]
[Date "2023.07.11"]
[WhiteClock "0:00:41"]
[BlackClock "0:00:37"]
[Board "22"]

1. e4 {[%clk 0:02:59]}  c6 {[%clk 0:03:00]} 2. d4 {[%clk 0:02:59]}  d5 {[%clk 0:02:58]} 3. e5 {[%clk 0:02:59]}  Bf5 {[%clk 0:02:58]} 4. h4 {[%clk 0:02:59]}  h5 {[%clk 0:02:57]} 5. c4 {[%clk 0:02:59]}  e6 {[%clk 0:02:57]} 6. Nc3 {[%clk 0:02:58]}  Nd7 {[%clk 0:02:53]} 7. Nge2 {[%clk 0:02:56]}  dxc4 {[%clk 0:02:52]} 8. Ng3 {[%clk 0:02:56]}  Bd3 {[%clk 0:02:52]} 9. Bg5 {[%clk 0:02:36]}  Qb6 {[%clk 0:02:47]} 10. Bxd3 {[%clk 0:02:36]}  cxd3 {[%clk 0:02:44]} 11. Qxd3 {[%clk 0:02:36]}  Ne7 {[%clk 0:02:38]} 12. O-O {[%clk 0:02:19]}  Nd5 {[%clk 0:02:36]} 13. Nge4 {[%clk 0:01:58]}  a5 {[%clk 0:02:03]} 14. b3 {[%clk 0:01:36]}  Qa6 {[%clk 0:01:53]} 15. Qf3 {[%clk 0:01:32]}  Nxc3 {[%clk 0:01:48]} 16. Qxc3 {[%clk 0:01:27]}  Bb4 {[%clk 0:01:29]} 17. Qf3 {[%clk 0:01:17]}  Qb5 {[%clk 0:01:20]} 18. Rab1 {[%clk 0:00:55]}  Qd5 {[%clk 0:01:18]} 19. Rfd1 {[%clk 0:00:50]}  Be7 {[%clk 0:01:10]} 20. Bxe7 {[%clk 0:00:42]}  Kxe7 {[%clk 0:01:08]} 21. Qe3 {[%clk 0:00:42]}  Kf8 {[%clk 0:00:37]} 22. Nc3 {[%clk 0:00:41]} 1-0


[Site "https://www.chess.com"]

[Event "Titled Tuesday Blitz July 11 Early 2023"]
[White "Michalczak, Thomas"]
[Black "Shimanov, Aleksandr"]
[WhiteFideId "4622634"]
[BlackFideId "4198603"]
[WhiteElo "2500"]
[BlackElo "2914"]
[Result "0-1"]
[Round "1"]
[TimeControl "180+2"]
[Date "2023.07.11"]
[WhiteClock "0:00:34"]
[BlackClock "0:01:21"]
[Board "23"]

1. e4 {[%clk 0:02:58]}  e6 {[%clk 0:02:57]} 2. d4 {[%clk 0:02:58]}  d5 {[%clk 0:02:57]} 3. Nc3 {[%clk 0:02:58]}  Bb4 {[%clk 0:02:54]} 4. e5 {[%clk 0:02:58]}  c5 {[%clk 0:02:52]} 5. a3 {[%clk 0:02:58]}  Ba5 {[%clk 0:02:46]} 6. b4 {[%clk 0:02:57]}  cxd4 {[%clk 0:02:46]} 7. Nb5 {[%clk 0:02:53]}  Bc7 {[%clk 0:02:45]} 8. f4 {[%clk 0:02:51]}  Ne7 {[%clk 0:02:44]} 9. Nf3 {[%clk 0:02:48]}  Bd7 {[%clk 0:02:44]} 10. Nbxd4 {[%clk 0:02:43]}  Bb6 {[%clk 0:02:28]} 11. Bd3 {[%clk 0:02:43]}  Nbc6 {[%clk 0:02:28]} 12. Bb2 {[%clk 0:02:42]}  h6 {[%clk 0:02:25]} 13. O-O {[%clk 0:02:40]}  O-O {[%clk 0:02:25]} 14. Kh1 {[%clk 0:02:40]}  Rc8 {[%clk 0:02:25]} 15. Nb5 {[%clk 0:02:25]}  Rb8 {[%clk 0:02:11]} 16. c4 {[%clk 0:02:13]}  dxc4 {[%clk 0:02:09]} 17. Bxc4 {[%clk 0:02:13]}  Nf5 {[%clk 0:02:10]} 18. Qb3 {[%clk 0:01:25]}  Nce7 {[%clk 0:02:03]} 19. Nbd4 {[%clk 0:01:21]}  Rc8 {[%clk 0:01:55]} 20. Rac1 {[%clk 0:01:15]}  a6 {[%clk 0:01:47]} 21. Rfd1 {[%clk 0:01:13]}  Qe8 {[%clk 0:01:47]} 22. Nxf5 {[%clk 0:00:59]}  Nxf5 {[%clk 0:01:46]} 23. Nd4 {[%clk 0:00:59]}  Ba4 {[%clk 0:01:44]} 24. Qd3 {[%clk 0:00:47]}  Bxd4 {[%clk 0:01:40]} 25. Bxd4 {[%clk 0:00:45]}  Bxd1 {[%clk 0:01:41]} 26. Rxd1 {[%clk 0:00:45]}  Rd8 {[%clk 0:01:24]} 27. Qe4 {[%clk 0:00:44]}  Qc6 {[%clk 0:01:21]} 28. Qxc6 {[%clk 0:00:34]}  bxc6 {[%clk 0:01:21]} 0-1


[Site "https://www.chess.com"]

[Event "Titled Tuesday Blitz July 11 Early 2023"]
[White "Keleberda, Tymur"]
[Black "Gordievsky, Dmitry"]
[WhiteFideId "14174294"]
[BlackFideId "24112798"]
[WhiteElo "2498"]
[BlackElo "2909"]
[Result "0-1"]
[Round "1"]
[TimeControl "180+2"]
[Date "2023.07.11"]
[WhiteClock "0:00:18"]
[BlackClock "0:00:13"]
[Board "25"]

1. e4 {[%clk 0:03:00]}  c5 {[%clk 0:02:57]} 2. Nf3 {[%clk 0:02:59]}  e6 {[%clk 0:02:57]} 3. c4 {[%clk 0:02:58]}  Nc6 {[%clk 0:02:56]} 4. b3 {[%clk 0:02:56]}  Nf6 {[%clk 0:02:55]} 5. e5 {[%clk 0:02:47]}  Ng4 {[%clk 0:02:55]} 6. Bb2 {[%clk 0:02:45]}  Nh6 {[%clk 0:02:42]} 7. Bd3 {[%clk 0:02:38]}  d6 {[%clk 0:02:36]} 8. exd6 {[%clk 0:02:37]}  Bxd6 {[%clk 0:02:31]} 9. Bxg7 {[%clk 0:02:34]}  Rg8 {[%clk 0:02:32]} 10. Bxh6 {[%clk 0:02:26]}  Qf6 {[%clk 0:02:32]} 11. Nc3 {[%clk 0:01:38]}  Qxh6 {[%clk 0:02:32]} 12. g3 {[%clk 0:01:35]}  f5 {[%clk 0:02:28]} 13. Qe2 {[%clk 0:01:28]}  Qf6 {[%clk 0:02:01]} 14. O-O-O {[%clk 0:01:23]}  Bd7 {[%clk 0:01:58]} 15. Kb1 {[%clk 0:01:12]}  O-O-O {[%clk 0:01:57]} 16. Bc2 {[%clk 0:01:08]}  e5 {[%clk 0:01:49]} 17. Nd5 {[%clk 0:01:07]}  Qf7 {[%clk 0:01:46]} 18. Qe3 {[%clk 0:01:00]}  e4 {[%clk 0:01:41]} 19. Nh4 {[%clk 0:01:00]}  Nd4 {[%clk 0:01:35]} 20. f4 {[%clk 0:00:59]}  Be6 {[%clk 0:01:31]} 21. Nc3 {[%clk 0:00:59]}  Rge8 {[%clk 0:01:29]} 22. d3 {[%clk 0:00:53]}  exd3 {[%clk 0:01:20]} 23. Qxd3 {[%clk 0:00:54]}  Be7 {[%clk 0:01:18]} 24. Qe3 {[%clk 0:00:49]}  Bxh4 {[%clk 0:01:16]} 25. gxh4 {[%clk 0:00:50]}  Bd5 {[%clk 0:01:14]} 26. Nxd5 {[%clk 0:00:39]}  Rxe3 {[%clk 0:01:13]} 27. Nxe3 {[%clk 0:00:40]}  Re8 {[%clk 0:01:07]} 28. Nd5 {[%clk 0:00:36]}  Qh5 {[%clk 0:00:46]} 29. Bd3 {[%clk 0:00:35]}  Qxh4 {[%clk 0:00:45]} 30. Rhg1 {[%clk 0:00:34]}  a5 {[%clk 0:00:41]} 31. Rg7 {[%clk 0:00:33]}  a4 {[%clk 0:00:39]} 32. Nb6+ {[%clk 0:00:30]}  Kb8 {[%clk 0:00:39]} 33. Nd7+ {[%clk 0:00:30]}  Ka8 {[%clk 0:00:35]} 34. Nxc5 {[%clk 0:00:31]}  Re1 {[%clk 0:00:34]} 35. Rxe1 {[%clk 0:00:29]}  Qxe1+ {[%clk 0:00:34]} 36. Kb2 {[%clk 0:00:29]}  Qb4 {[%clk 0:00:16]} 37. Nxa4 {[%clk 0:00:18]}  Qd2+ {[%clk 0:00:16]} 38. Ka3 {[%clk 0:00:18]}  Qxd3 {[%clk 0:00:17]} 39. Rxb7 {[%clk 0:00:16]}  Nc2+ {[%clk 0:00:12]} 40. Kb2 {[%clk 0:00:16]}  Qd4+ {[%clk 0:00:13]} 41. Kxc2 {[%clk 0:00:17]}  Kxb7 {[%clk 0:00:13]} 42. c5 {[%clk 0:00:17]}  Qxf4 {[%clk 0:00:13]} 43. Nc3 {[%clk 0:00:17]}  Qxh2+ {[%clk 0:00:13]} 44. Kd3 {[%clk 0:00:18]}  f4 {[%clk 0:00:14]} 45. b4 {[%clk 0:00:17]}  f3 {[%clk 0:00:14]} 46. b5 {[%clk 0:00:17]}  f2 {[%clk 0:00:15]} 47. Ke2 {[%clk 0:00:17]}  Qg1 {[%clk 0:00:14]} 48. c6+ {[%clk 0:00:18]}  Kc8 {[%clk 0:00:14]} 49. Nd5 {[%clk 0:00:17]}  f1=Q+ {[%clk 0:00:15]} 50. Kd2 {[%clk 0:00:18]}  Qxb5 {[%clk 0:00:13]} 51. Kc3 {[%clk 0:00:19]}  Qxd5 {[%clk 0:00:13]} 52. c7 {[%clk 0:00:19]}  Qgd4+ {[%clk 0:00:12]} 53. Kc2 {[%clk 0:00:19]}  Qxa2+ {[%clk 0:00:13]} 54. Kc1 {[%clk 0:00:18]}  Qdd2# {[%clk 0:00:13]} 0-1


[Site "https://www.chess.com"]

[Event "Titled Tuesday Blitz July 11 Early 2023"]
[White "Antipov, Mikhail Al."]
[Black "Ljukin, Sergei"]
[WhiteFideId "4107012"]
[BlackFideId "14102200"]
[WhiteElo "2906"]
[BlackElo "2497"]
[Result "0-1"]
[Round "1"]
[TimeControl "180+2"]
[Date "2023.07.11"]
[WhiteClock "0:00:14"]
[BlackClock "0:00:12"]
[Board "26"]

1. e4 {[%clk 0:02:15]}  e6 {[%clk 0:02:58]} 2. d4 {[%clk 0:02:11]}  d5 {[%clk 0:02:59]} 3. Nd2 {[%clk 0:02:11]}  Nf6 {[%clk 0:02:59]} 4. e5 {[%clk 0:02:10]}  Nfd7 {[%clk 0:02:59]} 5. Bd3 {[%clk 0:02:11]}  c5 {[%clk 0:03:00]} 6. c3 {[%clk 0:02:11]}  Nc6 {[%clk 0:03:00]} 7. Ngf3 {[%clk 0:02:11]}  Qb6 {[%clk 0:02:58]} 8. O-O {[%clk 0:02:11]}  Be7 {[%clk 0:02:57]} 9. dxc5 {[%clk 0:02:07]}  Nxc5 {[%clk 0:02:57]} 10. Bc2 {[%clk 0:02:07]}  f6 {[%clk 0:02:52]} 11. exf6 {[%clk 0:01:57]}  Bxf6 {[%clk 0:02:51]} 12. Nb3 {[%clk 0:01:58]}  Nxb3 {[%clk 0:02:49]} 13. axb3 {[%clk 0:01:55]}  O-O {[%clk 0:02:45]} 14. Qd3 {[%clk 0:01:46]}  g6 {[%clk 0:02:42]} 15. Bh6 {[%clk 0:01:42]}  Re8 {[%clk 0:02:38]} 16. h4 {[%clk 0:01:40]}  Qd8 {[%clk 0:02:14]} 17. h5 {[%clk 0:01:38]}  e5 {[%clk 0:02:14]} 18. Nd2 {[%clk 0:00:57]}  Bf5 {[%clk 0:02:11]} 19. Qb5 {[%clk 0:00:41]}  Bxc2 {[%clk 0:02:04]} 20. hxg6 {[%clk 0:00:41]}  Bxg6 {[%clk 0:02:00]} 21. Qxb7 {[%clk 0:00:38]}  Qb6 {[%clk 0:01:54]} 22. Qd7 {[%clk 0:00:36]}  Rad8 {[%clk 0:01:52]} 23. Qh3 {[%clk 0:00:37]}  e4 {[%clk 0:01:41]} 24. b4 {[%clk 0:00:30]}  Ne5 {[%clk 0:01:30]} 25. Be3 {[%clk 0:00:30]}  Qe6 {[%clk 0:01:30]} 26. Qxe6+ {[%clk 0:00:26]}  Rxe6 {[%clk 0:01:29]} 27. Rxa7 {[%clk 0:00:27]}  Nd3 {[%clk 0:01:04]} 28. Nb3 {[%clk 0:00:20]}  Re7 {[%clk 0:01:00]} 29. Ra6 {[%clk 0:00:20]}  Bg7 {[%clk 0:00:56]} 30. Bg5 {[%clk 0:00:20]}  Rde8 {[%clk 0:00:55]} 31. Bxe7 {[%clk 0:00:20]}  Rxe7 {[%clk 0:00:55]} 32. Rd1 {[%clk 0:00:21]}  Be5 {[%clk 0:00:37]} 33. b5 {[%clk 0:00:21]}  Bf4 {[%clk 0:00:14]} 34. b6 {[%clk 0:00:21]}  e3 {[%clk 0:00:14]} 35. fxe3 {[%clk 0:00:18]}  Bxe3+ {[%clk 0:00:14]} 36. Kh2 {[%clk 0:00:19]}  Bf4+ {[%clk 0:00:13]} 37. g3 {[%clk 0:00:19]}  Re2+ {[%clk 0:00:13]} 38. Kh3 {[%clk 0:00:15]}  Bf5+ {[%clk 0:00:12]} 39. Kh4 {[%clk 0:00:14]}  Rh2# {[%clk 0:00:12]} 0-1


[Site "https://www.chess.com"]